fUSD/lending_fUSD_20260401
["ID","MTS","AMOUNT","RATE_DAILY","PERIOD"]
[419245032,1775039444733,-500.0,0.0001589,2]
[419245033,1775039444743,-500.0,0.0001589,2]
[419245034,1775039444752,-500.0,0.0001589,2]
[419245035,1775039444762,-500.0,0.0001589,2]
[419245036,1775039444773,-500.0,0.0001589,2]
[419245037,1775039444784,-500.0,0.0001589,2]
[419245038,1775039444794,-500.0,0.0001589,2]
[419245039,1775039444804,-500.0,0.0001589,2]
[419245040,1775039444814,-500.0,0.0001589,2]
[419245041,1775039444824,-500.0,0.0001589,2]
[419245042,1775039444834,-500.0,0.0001589,2]
[419245043,1775039444842,-611.75027897,0.0001589,2]
[419245044,1775039444851,-221.45,0.0001589,2]
[419245045,1775039444861,-2000.0,0.0001589,2]
[419245046,1775039444871,-2000.0,0.000159,2]
[419245047,1775039444881,-3638.15710727,0.000159,2]
[419245048,1775039444891,-150.71162126,0.000159,2]
[419245049,1775039444901,-4955.81052316,0.000159,2]
[419245050,1775039444913,-158.12461934,0.000159,2]
[419245051,1775039444923,-500.0,0.00015973,2]
[419245052,1775039444933,-500.73578888,0.00015973,2]
[419245053,1775039444943,-500.0,0.00015973,2]
[419245054,1775039444952,-500.0,0.00015973,2]
[419245055,1775039444963,-500.0,0.00015973,2]
[419245056,1775039444974,-536.9866911,0.00015973,2]
[419245057,1775039444984,-500.0,0.00015973,2]
[419245058,1775039444993,-500.0,0.00015973,2]
[419245059,1775039445003,-500.0,0.00015973,2]
[419245060,1775039445012,-500.0,0.00015973,2]
[419245061,1775039445021,-224.28659877,0.00015973,2]
[419245062,1775039445031,-500.0,0.00015973,2]
[419245063,1775039445040,-500.0,0.00015973,2]
[419245064,1775039445051,-500.0,0.00015973,2]
[419245065,1775039445062,-500.0,0.00015973,2]
[419245066,1775039445071,-500.0,0.00015973,2]
[419245067,1775039445081,-500.41125099,0.00015973,2]
[419245068,1775039445090,-500.0,0.00015973,2]
[419245069,1775039445100,-500.0,0.00015973,2]
[419245070,1775039445109,-221.45,0.00015989,2]
[419245071,1775039445118,-151.0,0.00015997,2]
[419245072,1775039445127,-666.0,0.00015999,2]
[419245073,1775039445138,-666.0,0.00015999,2]
[419245074,1775039445147,-672.00857251,0.00015999,2]
[419245075,1775039445156,-521.6597525,0.00015999,2]
[419245076,1775039445166,-162947.027878,0.00015999,2]
[419245077,1775039445177,-264.08018043,0.00016,2]
[419245078,1775039445187,-235.53494643,0.00016,2]
[419245079,1775039445196,-181.42634673,0.00016,2]
[419245080,1775039445205,-150.70564753,0.00016,2]
[419245081,1775039445215,-224.22272223,0.00016,2]
[419245082,1775039445224,-271.90516272,0.00016,2]
[419245083,1775039445233,-169.66792767,0.00016,2]
[419245084,1775039445243,-150.69192866,0.00016,2]
[419245085,1775039445252,-270.67375433,0.00016,2]
[419245086,1775039445262,-1692428.22283588,0.00016,2]
[419245093,1775039447511,-578.73841391,0.000139,2]
[419245094,1775039447527,-1399.4,0.000139,2]
[419245098,1775039821907,-500.0,8.356e-05,2]
[419245101,1775040126543,-250.0,8.356e-05,2]
[419245103,1775040427405,-250.0,8.356e-05,2]
[419245115,1775040633630,-250.0,8.822e-05,2]
[419245116,1775040633640,-250.0,9.241e-05,2]
[419245117,1775040633650,-178.63,9.38e-05,2]
[419245118,1775040633659,-250.0,9.704e-05,2]
[419245119,1775040633669,-213.0,9.989e-05,2]
[419245120,1775040633679,-35.2537775,9.989e-05,2]
[419245121,1775040633691,-177.7462225,9.989e-05,2]
[419245122,1775040633700,-500.0,0.00011452,2]
[419245123,1775040633710,-14.42186718,0.00011562,2]
[419245124,1775040633857,-415.6993914,0.00011562,2]
[419245125,1775040633870,-69.87874142,0.00011562,2]
[419245126,1775040633880,-2525.14,0.00011621,2]
[419245127,1775040633890,-250.0,0.00011657,2]
[419245128,1775040633899,-188.17,0.00011662,2]
[419245129,1775040633909,-178.63,0.00011724,2]
[419245130,1775040633919,-500.0,0.00011928,2]
[419245131,1775040633928,-343.0,0.00012025,2]
[419245132,1775040633938,-1200.0,0.00012083,2]
[419245133,1775040633949,-372.0,0.00012084,2]
[419245134,1775040633958,-156.83017244,0.0001211,2]
[419245135,1775040633968,-150.0,0.000123,2]
[419245136,1775040633979,-181.16,0.00012311,2]
[419245137,1775040633989,-200.0,0.00012604,2]
[419245138,1775040634001,-150.0,0.00012653,2]
[419245139,1775040634010,-300.0,0.00012653,2]
[419245140,1775040634021,-48214.1483,0.00012654,2]
[419245141,1775040634031,-347.77206379,0.00012692,2]
[419245142,1775040634040,-500.0,0.00012692,2]
[419245143,1775040634050,-307.36776843,0.00012692,2]
[419245144,1775040634059,-500.0,0.00012692,2]
[419245145,1775040634069,-500.0,0.00012692,2]
[419245146,1775040634079,-500.0,0.00012692,2]
[419245147,1775040634088,-500.0,0.00012692,2]
[419245148,1775040634098,-500.0,0.00012692,2]
[419245149,1775040634108,-500.0,0.00012692,2]
[419245150,1775040634117,-500.0,0.00012692,2]
[419245151,1775040634129,-500.0,0.00012692,2]
[419245152,1775040634139,-500.0,0.00012692,2]
[419245153,1775040634148,-500.0,0.00012692,2]
[419245154,1775040634161,-500.0,0.00012692,2]
[419245155,1775040634171,-500.0,0.00012692,2]
[419245156,1775040634181,-500.0,0.00012692,2]
[419245157,1775040634191,-500.0,0.00012692,2]
[419245158,1775040634201,-500.0,0.00012692,2]
[419245159,1775040634211,-500.0,0.00012692,2]
[419245160,1775040634221,-500.0,0.00012692,2]
[419245161,1775040634231,-500.0,0.00012692,2]
[419245162,1775040634241,-500.0,0.00012692,2]
[419245163,1775040634250,-500.0,0.00012692,2]
[419245164,1775040634260,-500.0,0.00012692,2]
[419245165,1775040634270,-165.54924114,0.00012692,2]
[419245166,1775040634279,-500.0,0.00012692,2]
[419245167,1775040634289,-500.0,0.00012692,2]
[419245168,1775040634299,-500.0,0.00012692,2]
[419245169,1775040634308,-500.0,0.00012692,2]
[419245170,1775040634319,-500.0,0.00012692,2]
[419245171,1775040634328,-500.0,0.00012692,2]
[419245172,1775040634338,-500.0,0.00012692,2]
[419245173,1775040634347,-500.0,0.00012692,2]
[419245174,1775040634356,-500.0,0.00012692,2]
[419245175,1775040634366,-500.0,0.00012692,2]
[419245176,1775040634376,-500.0,0.00012692,2]
[419245177,1775040634386,-500.0,0.00012692,2]
[419245178,1775040634397,-500.0,0.00012692,2]
[419245179,1775040634408,-500.0,0.00012692,2]
[419245180,1775040634417,-500.0,0.00012692,2]
[419245181,1775040634428,-26342.6078,0.00012693,2]
[419245182,1775040634438,-2500.0,0.00012693,2]
[419245183,1775040634448,-5452.99758857,0.00012693,2]
[419245184,1775040634458,-1258.76514821,0.00012693,2]
[419245185,1775040634468,-500.0,0.00012754,2]
[419245186,1775040634478,-500.0,0.00012754,2]
[419245187,1775040634487,-500.0,0.00012754,2]
[419245188,1775040634497,-500.0,0.00012754,2]
[419245189,1775040634507,-500.0,0.00012754,2]
[419245190,1775040634516,-500.0,0.00012754,2]
[419245191,1775040634525,-500.0,0.00012754,2]
[419245192,1775040634535,-500.0,0.00012754,2]
[419245193,1775040634544,-500.0,0.00012754,2]
[419245194,1775040634554,-500.0,0.00012754,2]
[419245195,1775040634563,-500.0,0.00012754,2]
[419245196,1775040634573,-500.0,0.00012754,2]
[419245197,1775040634583,-151.0,0.00012754,2]
[419245198,1775040634592,-151.0,0.00012754,2]
[419245199,1775040634602,-151.0,0.00012754,2]
[419245200,1775040634612,-151.0,0.00012754,2]
[419245201,1775040634623,-500.0,0.00012754,2]
[419245202,1775040634634,-500.0,0.00012754,2]
[419245203,1775040634644,-151.0,0.00012754,2]
[419245204,1775040634655,-151.0,0.00012754,2]
[419245205,1775040634664,-500.0,0.00012754,2]
[419245206,1775040634675,-151.0,0.00012754,2]
[419245207,1775040634685,-500.0,0.00012754,2]
[419245208,1775040634696,-151.0,0.00012754,2]
[419245209,1775040634706,-151.0,0.00012754,2]
[419245210,1775040634716,-500.0,0.00012754,2]
[419245211,1775040634727,-151.0,0.00012754,2]
[419245212,1775040634740,-151.0,0.00012754,2]
[419245213,1775040634750,-500.0,0.00012754,2]
[419245214,1775040634759,-151.0,0.00012754,2]
[419245215,1775040634768,-151.0,0.00012754,2]
[419245216,1775040634778,-500.0,0.00012754,2]
[419245217,1775040634788,-151.0,0.00012754,2]
[419245218,1775040634798,-151.0,0.00012754,2]
[419245219,1775040634807,-151.0,0.00012754,2]
[419245220,1775040634817,-151.0,0.00012754,2]
[419245221,1775040634827,-151.0,0.00012754,2]
[419245222,1775040634836,-151.0,0.00012754,2]
[419245223,1775040634846,-151.0,0.00012754,2]
[419245224,1775040634855,-151.0,0.00012754,2]
[419245225,1775040634865,-151.0,0.00012754,2]
[419245226,1775040634874,-151.0,0.00012754,2]
[419245227,1775040634884,-151.0,0.00012754,2]
[419245228,1775040634893,-503.38413712,0.00012773,2]
[419245229,1775040634903,-226.51347201,0.00012773,2]
[419245230,1775040634914,-500.0,0.00012773,2]
[419245231,1775040634926,-500.0,0.00012773,2]
[419245232,1775040634935,-500.0,0.00012773,2]
[419245233,1775040634945,-500.0,0.00012773,2]
[419245234,1775040634955,-500.13692831,0.00012773,2]
[419245235,1775040634965,-500.0,0.00012773,2]
[419245236,1775040634974,-500.0,0.00012773,2]
[419245237,1775040634983,-369.50007954,0.00012773,2]
[419245238,1775040634993,-500.0,0.00012773,2]
[419245239,1775040635002,-500.0,0.00012773,2]
[419245240,1775040635012,-500.0,0.00012773,2]
[419245241,1775040635021,-167.64310808,0.00012773,2]
[419245242,1775040635030,-500.0,0.00012773,2]
[419245243,1775040635040,-500.53190228,0.00012773,2]
[419245244,1775040635049,-403.1197189,0.00012783,2]
[419245245,1775040635058,-1500000.0,0.00012793,2]
[419245246,1775040635068,-500.0,0.00012966,2]
[419245247,1775040635078,-1500.0,0.00013034,2]
[419245248,1775040635087,-500.0,0.00013034,2]
[419245249,1775040635097,-5452.99758857,0.00013049,2]
[419245250,1775040635106,-505.0,0.00013111,2]
[419245251,1775040635115,-1229.92,0.00013166,2]
[419245252,1775040635125,-1680.0,0.00013291,2]
[419245253,1775040635136,-500.0,0.00013321,2]
[419245254,1775040635145,-1000.0,0.00013321,2]
[419245255,1775040635156,-374.66160514,0.00013321,2]
[419245256,1775040635166,-1000.0,0.00013321,2]
[419245257,1775040635176,-1001.48601759,0.00013321,2]
[419245258,1775040635185,-500.0,0.00013321,2]
[419245259,1775040635195,-5452.99758857,0.00013406,2]
[419245260,1775040635205,-3240.0,0.00013425,2]
[419245261,1775040635214,-192.177,0.000136,7]
[419245262,1775040635223,-1098.51937213,0.00013622,2]
[419245263,1775040635233,-500.0,0.00013698,2]
[419245264,1775040635242,-207.8534478,0.00013698,2]
[419245265,1775040635252,-500.0,0.00013698,2]
[419245266,1775040635262,-500.0,0.00013698,2]
[419245267,1775040635271,-500.0,0.00013698,2]
[419245268,1775040635282,-500.0,0.00013698,2]
[419245269,1775040635291,-347.13414899,0.00013698,2]
[419245270,1775040635300,-500.0,0.00013698,2]
[419245271,1775040635310,-500.0,0.00013698,2]
[419245272,1775040635319,-281.61641343,0.00013698,2]
[419245273,1775040635329,-504.60520065,0.00013698,2]
[419245274,1775040635338,-549.94246987,0.00013698,2]
[419245275,1775040635348,-500.0,0.00013698,2]
[419245276,1775040635357,-504.2318241,0.00013698,2]
[419245277,1775040635366,-500.0,0.00013698,2]
[419245278,1775040635377,-500.0,0.00013698,2]
[419245279,1775040635386,-393.559,0.00013698,2]
[419245280,1775040635396,-150.0,0.00013699,2]
[419245281,1775040635405,-150.0,0.00013699,2]
[419245282,1775040635415,-150.0,0.00013699,2]
[419245283,1775040635425,-150.0,0.00013699,2]
[419245284,1775040635435,-150.0,0.00013699,2]
[419245285,1775040635444,-150.0,0.00013699,2]
[419245286,1775040635454,-16362.27,0.00013699,2]
[419245287,1775040635464,-166.66,0.00013699,2]
[419245288,1775040635474,-255.53,0.00013699,2]
[419245289,1775040635484,-212.94,0.00013699,2]
[419245290,1775040635494,-177.45,0.00013699,2]
[419245291,1775040635503,-887.29,0.00013699,2]
[419245292,1775040635513,-200.0,0.00013699,2]
[419245293,1775040635525,-349.56,0.00013699,2]
[419245294,1775040635538,-9999.99,0.00013699,2]
[419245295,1775040635552,-5778.53,0.00013699,2]
[419245296,1775040635563,-150.99,0.00013699,2]
[419245297,1775040635576,-6229.77,0.00013699,2]
[419245298,1775040635589,-330.62596809,0.00013699,2]
[419245299,1775040635599,-500.0,0.00013699,2]
[419245300,1775040635611,-500.0,0.00013699,2]
[419245301,1775040635624,-500.0,0.00013699,2]
[419245302,1775040635636,-500.0,0.00013699,2]
[419245303,1775040635648,-500.0,0.00013699,2]
[419245304,1775040635659,-500.0,0.00013699,2]
[419245305,1775040635671,-500.0,0.00013699,2]
[419245306,1775040635683,-500.0,0.00013699,2]
[419245307,1775040635696,-500.0,0.00013699,2]
[419245308,1775040635707,-500.0,0.00013699,2]
[419245309,1775040635719,-500.0,0.00013699,2]
[419245310,1775040635730,-500.0,0.00013699,2]
[419245311,1775040635742,-500.73578888,0.00013699,2]
[419245312,1775040635755,-581.59764904,0.00013699,2]
[419245313,1775040635767,-9112.08,0.000137,2]
[419245314,1775040635780,-9112.08,0.000137,2]
[419245315,1775040635792,-255.0,0.00013754,2]
[419245316,1775040635804,-5452.99758857,0.00013762,2]
[419245317,1775040635815,-220.33,0.00013784,2]
[419245318,1775040635826,-166.66,0.00013836,2]
[419245319,1775040635839,-32997.7747,0.00013853,2]
[419245320,1775040635851,-1000.0,0.00013853,2]
[419245321,1775040635862,-502.16371872,0.00013868,2]
[419245322,1775040635873,-174.0,0.000139,3]
[419245323,1775040635883,-150.0,0.00013973,2]
[419245324,1775040635897,-150.0,0.00013973,2]
[419245325,1775040635909,-150.0,0.00013973,2]
[419245326,1775040635921,-150.0,0.00013973,2]
[419245327,1775040635933,-166.66,0.00013973,2]
[419245328,1775040635945,-160.0,0.00014,7]
[419245329,1775040635957,-178.63,0.00014069,2]
[419245330,1775040635970,-166.66,0.0001411,2]
[419245331,1775040635981,-5452.99758857,0.00014118,2]
[419245332,1775040635994,-3165.23481391,0.00014169,2]
[419245333,1775040636007,-1047.50940685,0.00014169,2]
[419245334,1775040636018,-2222.8763441,0.00014169,2]
[419245335,1775040636031,-928.88410002,0.00014169,2]
[419245336,1775040636045,-166.66,0.00014247,2]
[419245337,1775040636056,-150.0,0.00014247,2]
[419245338,1775040636067,-150.0,0.00014247,2]
[419245339,1775040636078,-150.0,0.00014247,2]
[419245340,1775040636088,-150.0,0.00014247,2]
[419245341,1775040636098,-356.03578514,0.00014247,2]
[419245342,1775040636109,-1000.0,0.00014247,2]
[419245343,1775040636122,-1000.0,0.00014247,2]
[419245344,1775040636134,-166.66,0.00014384,2]
[419245345,1775040636144,-150.0,0.000144,2]
[419245346,1775040636154,-150.0,0.000144,2]
[419245347,1775040636166,-150.0,0.000144,2]
[419245348,1775040636177,-150.0,0.000144,2]
[419245349,1775040636189,-150.0,0.000144,2]
[419245350,1775040636201,-150.0,0.000144,2]
[419245351,1775040636213,-150.0,0.000144,2]
[419245352,1775040636224,-150.22908623,0.000144,2]
[419245353,1775040636235,-150.01563451,0.000144,2]
[419245354,1775040636248,-150.0,0.000144,2]
[419245355,1775040636259,-150.0,0.000144,2]
[419245356,1775040636270,-5452.99758857,0.00014475,2]
[419245357,1775040636281,-2000.0,0.000145,2]
[419245358,1775040636292,-150.0,0.0001456,2]
[419245359,1775040636302,-500.0,0.00014617,2]
[419245360,1775040636314,-2351.0,0.0001462,2]
[419245361,1775040636325,-150.0,0.00014629,2]
[419245362,1775040636336,-500.0,0.0001463,2]
[419245363,1775040636348,-150.0,0.00014667,2]
[419245364,1775040636359,-150.0,0.00014667,2]
[419245365,1775040636370,-150.0,0.00014667,2]
[419245366,1775040636381,-163.715143,0.000147,7]
[419245367,1775040636392,-150.0,0.0001472,2]
[419245368,1775040636403,-150.0,0.0001472,2]
[419245369,1775040636413,-500.0,0.0001475,2]
[419245370,1775040636424,-500.0,0.0001475,2]
[419245371,1775040636435,-1579.04808524,0.00014795,2]
[419245372,1775040636453,-1500.0,0.00014795,2]
[419245373,1775040636463,-150.0,0.000148,2]
[419245374,1775040636474,-150.0,0.000148,2]
[419245375,1775040636485,-5452.99758857,0.00014831,2]
[419245376,1775040636495,-150.0,0.00014857,2]
[419245377,1775040636507,-150.0,0.0001488,2]
[419245378,1775040636517,-160.0,0.00014884,7]
[419245379,1775040636528,-169.893072,0.00014884,7]
[419245380,1775040636539,-179.786144,0.00014884,7]
[419245381,1775040636551,-160.0,0.00014884,7]
[419245382,1775040636561,-913.549868,0.00014884,7]
[419245383,1775040636571,-1667.099737,0.00014884,7]
[419245384,1775040636582,-160.0,0.00014884,7]
[419245385,1775040636592,-255.486072,0.00014884,7]
[419245386,1775040636603,-350.972145,0.00014884,7]
[419245387,1775040636614,-160.0,0.00014884,7]
[419245388,1775040636624,-328.325022,0.00014884,7]
[419245389,1775040636635,-496.650044,0.00014884,7]
[419245390,1775040636645,-246.2135,0.000149,12]
[419245391,1775040636656,-160.0,0.00014905,7]
[419245392,1775040636667,-1220.051382,0.00014905,7]
[419245393,1775040636678,-2280.102764,0.00014905,7]
[419245394,1775040636689,-150.0,0.00014933,2]
[419245395,1775040636700,-150.0,0.00014933,2]
[419245396,1775040636711,-150.0,0.00014933,2]
[419245397,1775040636723,-160.63608989,0.00014934,2]
[419245398,1775040636734,-433.0,0.00014956,2]
[419245399,1775040636746,-385.5613233,0.00014968,2]
[419245400,1775040636758,-787.90528,0.00015,2]
[419245401,1775040636770,-160.0,0.00015,2]
[419245402,1775040636781,-10000.0,0.00015,7]
[419245403,1775040636792,-10000.0,0.00015,7]
[419245404,1775040636802,-10000.0,0.00015,7]
[419245405,1775040636813,-2069.0,0.00015,7]
[419245406,1775040636823,-150.0,0.0001504,2]
[419245407,1775040636833,-150.0,0.0001504,2]
[419245408,1775040636844,-150.0,0.00015086,2]
[419245409,1775040636854,-5452.99758857,0.00015187,2]
[419245410,1775040636865,-150.0,0.000152,2]
[419245411,1775040636876,-150.0,0.000152,2]
[419245412,1775040636887,-150.0,0.000152,2]
[419245413,1775040636897,-150.0,0.000152,2]
[419245414,1775040636908,-150.0,0.000152,2]
[419245415,1775040636919,-150.0,0.000152,2]
[419245416,1775040636931,-150.0,0.000152,2]
[419245417,1775040636943,-10000.0,0.00015205,2]
[419245418,1775040636954,-330.8503472,0.00015248,2]
[419245419,1775040636966,-310.40487756,0.00015248,2]
[419245420,1775040636977,-808.76231743,0.00015283,2]
[419245421,1775040636988,-1000.0,0.00015298,2]
[419245422,1775040636999,-2000.0,0.000153,2]
[419245423,1775040637011,-150.0,0.00015314,2]
[419245424,1775040637021,-2000.0,0.00015342,2]
[419245425,1775040637033,-150.0,0.0001536,2]
[419245426,1775040637045,-150.0,0.0001536,2]
[419245427,1775040637056,-160.0,0.0001544,2]
[419245428,1775040637068,-160.0,0.0001544,2]
[419245429,1775040637079,-150.0,0.00015467,2]
[419245430,1775040637091,-150.0,0.00015467,2]
[419245431,1775040637101,-150.0,0.00015467,2]
[419245432,1775040637112,-5783.39,0.00015471,2]
[419245433,1775040637123,-2830.43,0.00015471,2]
[419245434,1775040637134,-785.2,0.00015479,2]
[419245435,1775040637145,-500.0,0.00015493,2]
[419245436,1775040637157,-533.7,0.00015507,2]
[419245437,1775040637167,-350.0,0.00015517,2]
[419245438,1775040637179,-150.0,0.0001552,2]
[419245439,1775040637191,-150.0,0.00015543,2]
[419245440,1775040637203,-5452.99758857,0.00015544,2]
[419245441,1775040637215,-1000.0,0.00015572,2]
[419245442,1775040637228,-1000.0,0.00015572,2]
[419245443,1775040637240,-1000.0,0.00015572,2]
[419245444,1775040637251,-1000.0,0.00015572,2]
[419245445,1775040637263,-1000.0,0.00015572,2]
[419245446,1775040637274,-1000.0,0.00015572,2]
[419245447,1775040637286,-1000.0,0.00015572,2]
[419245448,1775040637297,-838.11,0.00015572,2]
[419245449,1775040637308,-150.0,0.000156,2]
[419245450,1775040637319,-150.0,0.000156,2]
[419245451,1775040637330,-231.672371,0.00015628,7]
[419245452,1775040637341,-1245.749821,0.00015628,7]
[419245453,1775040637352,-348.390099,0.00015628,7]
[419245454,1775040637363,-447.715939,0.00015628,7]
[419245455,1775040637374,-174.0,0.00015628,3]
[419245456,1775040637385,-1663.70643,0.00015651,7]
[419245457,1775040637395,-150.0,0.0001568,2]
[419245458,1775040637406,-150.0,0.0001568,2]
[419245459,1775040637417,-500.0,0.00015685,2]
[419245460,1775040637427,-4030.831,0.000157,2]
[419245461,1775040637438,-267.381,0.000157,2]
[419245462,1775040637448,-578.20924308,0.00015719,2]
[419245463,1775040637459,-200.0,0.00015719,2]
[419245464,1775040637469,-500.0,0.00015719,2]
[419245465,1775040637479,-8882.6885148,0.00015719,2]
[419245466,1775040637490,-194.72792766,0.00015719,2]
[419245467,1775040637500,-500.0,0.00015719,2]
[419245468,1775040637510,-1328.27659266,0.00015719,2]
[419245469,1775040637521,-500.0,0.00015719,2]
[419245470,1775040637531,-500.0,0.00015719,2]
[419245471,1775040637541,-500.0,0.00015719,2]
[419245472,1775040637551,-500.0,0.00015719,2]
[419245473,1775040637564,-500.0,0.00015719,2]
[419245474,1775040637575,-151.0,0.00015719,2]
[419245475,1775040637586,-500.0,0.00015719,2]
[419245476,1775040637596,-500.0,0.00015719,2]
[419245477,1775040637607,-295.29184605,0.00015719,2]
[419245478,1775040637618,-500.0,0.00015719,2]
[419245479,1775040637628,-500.0,0.00015719,2]
[419245480,1775040637640,-500.0,0.00015719,2]
[419245481,1775040637651,-500.0,0.00015719,2]
[419245482,1775040637661,-500.0,0.00015719,2]
[419245483,1775040637672,-500.0,0.00015719,2]
[419245484,1775040637683,-500.0,0.00015719,2]
[419245485,1775040637695,-500.0,0.00015719,2]
[419245486,1775040637705,-500.0,0.00015719,2]
[419245487,1775040637715,-500.0,0.00015719,2]
[419245488,1775040637725,-151.0,0.00015719,2]
[419245489,1775040637735,-500.0,0.00015719,2]
[419245490,1775040637746,-500.0,0.00015719,2]
[419245491,1775040637756,-500.0,0.00015719,2]
[419245492,1775040637767,-500.0,0.00015719,2]
[419245493,1775040637778,-500.0,0.00015719,2]
[419245494,1775040637788,-500.0,0.00015719,2]
[419245495,1775040637799,-500.0,0.00015719,2]
[419245496,1775040637809,-265.2363603,0.00015719,2]
[419245497,1775040637967,-535.47487001,0.00012792,2]
[419245498,1775040637979,-510.67026308,0.00012792,2]
[419245499,1775040637989,-234.7636397,0.00015719,2]
[419245500,1775040637999,-500.0,0.00015719,2]
[419245501,1775040638011,-500.0,0.00015719,2]
[419245502,1775040638021,-500.0,0.00015719,2]
[419245503,1775040638032,-174.61919141,0.00015719,2]
[419245504,1775040638044,-500.0,0.00015719,2]
[419245505,1775040638054,-123.5101392,0.00015719,2]
[419245506,1775040638214,-376.4898608,0.00015719,2]
[419245507,1775040638225,-500.0,0.00015719,2]
[419245508,1775040638234,-430.4904422,0.00015719,2]
[419245514,1775040640455,-500.0,0.00012792,2]
[419245515,1775040640465,-221.48,0.000137,2]
[419245516,1775040640475,-69.5095578,0.00015719,2]
[419245517,1775040640485,-315.53771945,0.00015719,2]
[419245518,1775040640498,-184.46228055,0.00015719,2]
[419245519,1775040640509,-500.0,0.00015719,2]
[419245520,1775040640519,-200.0,0.00015719,2]
[419245521,1775040640529,-500.0,0.00015719,2]
[419245522,1775040640539,-286.88791913,0.00015719,2]
[419245523,1775040640596,-213.11208087,0.00015719,2]
[419245524,1775040640605,-644.79446246,0.00015719,2]
[419245525,1775040640615,-274.77600396,0.00015719,2]
[419245526,1775040640671,-225.22399604,0.00015719,2]
[419245527,1775040640681,-500.0,0.00015719,2]
[419245528,1775040640691,-250.0,0.00015719,2]
[419245529,1775040640701,-250.0,0.00015719,2]
[419245530,1775040640711,-250.0,0.00015719,2]
[419245531,1775040640720,-250.0,0.00015719,2]
[419245532,1775040640735,-279.9045709,0.00015719,2]
[419245533,1775040640746,-250.0,0.00015719,2]
[419245534,1775040640758,-183.02455577,0.00015719,2]
[419245535,1775040640771,-66.97544423,0.00015719,2]
[419245536,1775040640781,-250.0,0.00015719,2]
[419245537,1775040640791,-250.0,0.00015719,2]
[419245538,1775040640802,-250.0,0.00015719,2]
[419245539,1775040640813,-250.0,0.00015719,2]
[419245540,1775040640824,-250.0,0.00015719,2]
[419245541,1775040640834,-250.0,0.00015719,2]
[419245542,1775040640845,-250.0,0.00015719,2]
[419245543,1775040640855,-743.50770149,0.00015719,2]
[419245544,1775040640865,-262.90206542,0.00015719,2]
[419245545,1775040640876,-500.0,0.00015719,2]
[419245546,1775040640886,-500.0,0.00015719,2]
[419245547,1775040640896,-607.92809489,0.00015719,2]
[419245548,1775040640906,-150.0,0.00015733,2]
[419245549,1775040640916,-150.0,0.00015733,2]
[419245550,1775040640928,-150.0,0.00015733,2]
[419245551,1775040640938,-701.66,0.00015753,2]
[419245552,1775040640949,-171.622813,0.00015765,2]
[419245553,1775040640959,-150.0,0.00015771,2]
[419245554,1775040640969,-9211.34798985,0.00015774,2]
[419245555,1775040640980,-500.0,0.00015774,2]
[419245556,1775040640991,-151.0,0.00015774,2]
[419245557,1775040641002,-272.62944185,0.00015774,2]
[419245558,1775040641013,-505.0,0.00015787,4]
[419245559,1775040641024,-38815.73501007,0.000158,2]